lending/lending_fUSD_20250323
["ID","MTS","AMOUNT","RATE_DAILY","PERIOD"]
[356585830,1742735435756,-500.0,0.00012,2]
[356585831,1742735435766,-500.0,0.00012,2]
[356585832,1742735435775,-500.0,0.00012,2]
[356585833,1742735435783,-500.0,0.00012,2]
[356585834,1742735435792,-500.0,0.00012,2]
[356585835,1742735435801,-151.0,0.00012,2]
[356585836,1742735435810,-500.0,0.00012,2]
[356585837,1742735435818,-151.0,0.00012,2]
[356585838,1742735435827,-151.0,0.00012,2]
[356585839,1742735435836,-977.0,0.00012,2]
[356585840,1742735435845,-151.0,0.00012,2]
[356585841,1742735435854,-151.0,0.00012,2]
[356585842,1742735435863,-151.0,0.00012,2]
[356585843,1742735435872,-500.0,0.00012,2]
[356585844,1742735435884,-151.0,0.00012,2]
[356585845,1742735435894,-500.0,0.00012,2]
[356585846,1742735435904,-151.0,0.00012,2]
[356585847,1742735435913,-151.0,0.00012,2]
[356585848,1742735435923,-500.0,0.00012,2]
[356585849,1742735435932,-500.0,0.00012,2]
[356585850,1742735435942,-151.0,0.00012,2]
[356585851,1742735435951,-151.0,0.00012,2]
[356585852,1742735435960,-500.0,0.00012,2]
[356585853,1742735435969,-663.0,0.00012,2]
[356585854,1742735435982,-151.0,0.00012,2]
[356585855,1742735435991,-151.0,0.00012,2]
[356585856,1742735436000,-151.0,0.00012,2]
[356585857,1742735436008,-151.0,0.00012,2]
[356585858,1742735436018,-151.0,0.00012,2]
[356585859,1742735436027,-151.0,0.00012,2]
[356585860,1742735436036,-151.0,0.00012,2]
[356585862,1742735436045,-151.0,0.00012,2]
[356585863,1742735436056,-159.608537,0.00012,2]
[356585865,1742735436065,-151.0,0.00012,2]
[356585867,1742735436075,-151.0,0.00012,2]
[356585869,1742735436084,-500.0,0.00012,2]
[356585871,1742735436093,-500.0,0.00012,2]
[356585873,1742735436103,-500.0,0.00012,2]
[356585875,1742735436112,-500.0,0.00012,2]
[356585877,1742735436121,-151.0,0.00012,2]
[356585879,1742735436130,-500.0,0.00012,2]
[356585881,1742735436140,-151.0,0.00012,2]
[356585883,1742735436149,-154.725934,0.00012,2]
[356585885,1742735436158,-151.0,0.00012,2]
[356585886,1742735436167,-500.0,0.00012,2]
[356585888,1742735436176,-151.0,0.00012,2]
[356585890,1742735436186,-151.0,0.00012,2]
[356585892,1742735436195,-500.0,0.00012,2]
[356585894,1742735436204,-151.0,0.00012,2]
[356585896,1742735436214,-151.0,0.00012,2]
[356585898,1742735436223,-500.0,0.00012,2]
[356585900,1742735436232,-232.262583,0.00012,2]
[356585901,1742735436241,-500.0,0.00012,2]
[356585902,1742735436250,-500.0,0.00012,2]
[356585903,1742735436259,-500.0,0.00012,2]
[356585904,1742735436269,-500.0,0.00012,2]
[356585905,1742735436278,-500.0,0.00012,2]
[356585906,1742735436288,-500.0,0.00012,2]
[356585907,1742735436297,-500.0,0.00012,2]
[356585908,1742735436307,-500.0,0.00012,2]
[356585909,1742735436316,-500.0,0.00012,2]
[356585910,1742735436325,-500.0,0.00012,2]
[356585911,1742735436334,-500.0,0.00012,2]
[356585912,1742735436343,-500.0,0.00012,2]
[356585913,1742735436353,-500.0,0.00012,2]
[356585914,1742735436362,-500.0,0.00012,2]
[356585915,1742735436371,-500.0,0.00012,2]
[356585916,1742735436381,-500.0,0.00012,2]
[356585917,1742735436391,-500.0,0.00012,2]
[356585918,1742735436401,-500.0,0.00012,2]
[356585919,1742735436410,-500.0,0.00012,2]
[356585920,1742735436419,-500.0,0.00012,2]
[356585921,1742735436428,-500.0,0.00012,2]
[356585922,1742735436438,-500.0,0.00012,2]
[356585923,1742735436448,-500.0,0.00012,2]
[356585924,1742735436457,-500.0,0.00012,2]
[356585925,1742735436466,-500.0,0.00012,2]
[356585926,1742735436476,-500.0,0.00012,2]
[356585927,1742735436485,-500.0,0.00012,2]
[356585928,1742735436495,-500.0,0.00012,2]
[356585929,1742735436504,-500.0,0.00012,2]
[356585930,1742735436513,-500.0,0.00012,2]
[356585931,1742735436522,-500.0,0.00012,2]
[356585932,1742735436531,-500.0,0.00012,2]
[356585933,1742735436540,-500.0,0.00012,2]
[356585934,1742735436550,-500.0,0.00012,2]
[356585935,1742735436560,-500.0,0.00012,2]
[356585936,1742735436569,-500.0,0.00012,2]
[356585937,1742735436578,-500.0,0.00012,2]
[356585938,1742735436587,-500.0,0.00012,2]
[356585939,1742735436597,-500.0,0.00012,2]
[356585940,1742735436607,-500.0,0.00012,2]
[356585941,1742735436616,-500.0,0.00012,2]
[356585942,1742735436626,-500.0,0.00012,2]
[356585943,1742735436635,-500.0,0.00012,2]
[356585944,1742735436645,-500.0,0.00012,2]
[356585945,1742735436654,-500.0,0.00012,2]
[356585946,1742735436663,-500.0,0.00012,2]
[356585947,1742735436672,-500.0,0.00012,2]
[356585948,1742735436682,-500.0,0.00012,2]
[356585949,1742735436691,-500.0,0.00012,2]
[356585950,1742735436701,-500.0,0.00012,2]
[356585951,1742735436710,-500.0,0.00012,2]
[356585952,1742735436720,-151.0,0.00012,2]
[356585953,1742735436729,-500.0,0.00012,2]
[356585954,1742735436739,-151.0,0.00012,2]
[356585955,1742735436748,-297.786019,0.00012,2]
[356585956,1742735436758,-500.0,0.00012,2]
[356585957,1742735436767,-151.0,0.00012,2]
[356585958,1742735436777,-151.0,0.00012,2]
[356585959,1742735436786,-500.0,0.00012,2]
[356585960,1742735436796,-151.0,0.00012,2]
[356585961,1742735436805,-151.0,0.00012,2]
[356585962,1742735436815,-500.0,0.00012,2]
[356585963,1742735436825,-150.0,0.00012,2]
[356585964,1742735436834,-500.0,0.00012,2]
[356585965,1742735436844,-500.0,0.00012,2]
[356585966,1742735436853,-500.0,0.00012,2]
[356585967,1742735436862,-500.0,0.00012,2]
[356585968,1742735436872,-500.0,0.00012,2]
[356585969,1742735436882,-151.0,0.00012,2]
[356585970,1742735436891,-500.0,0.00012,2]
[356585971,1742735436901,-151.0,0.00012,2]
[356585972,1742735436911,-151.0,0.00012,2]
[356585973,1742735436920,-500.0,0.00012,2]
[356585974,1742735436930,-153.820915,0.00012,2]
[356585975,1742735436939,-151.0,0.00012,2]
[356585976,1742735436949,-500.0,0.00012,2]
[356585977,1742735436958,-151.0,0.00012,2]
[356585978,1742735436967,-500.0,0.00012,2]
[356585979,1742735436978,-151.0,0.00012,2]
[356585980,1742735436988,-500.0,0.00012,2]
[356585981,1742735436997,-179.824968,0.00012,2]
[356585982,1742735437007,-500.0,0.00012,2]
[356585983,1742735437016,-500.0,0.00012,2]
[356585984,1742735437026,-500.0,0.00012,2]
[356585985,1742735437036,-500.0,0.00012,2]
[356585986,1742735437045,-500.0,0.00012,2]
[356585987,1742735437058,-500.0,0.00012,2]
[356585988,1742735437069,-765.81214582,0.00012,2]
[356585989,1742735437079,-500.0,0.00012,2]
[356585990,1742735437088,-500.0,0.00012,2]
[356585991,1742735437098,-500.0,0.00012,2]
[356585992,1742735437107,-500.0,0.00012,2]
[356585993,1742735437116,-500.0,0.00012,2]
[356585994,1742735437125,-500.0,0.00012,2]
[356585995,1742735437135,-299.993295,0.00012,2]
[356585996,1742735437144,-299.993295,0.00012,2]
[356585997,1742735437154,-500.0,0.00012,2]
[356585998,1742735437164,-299.993295,0.00012,2]
[356585999,1742735437173,-500.0,0.00012,2]
[356586000,1742735437183,-299.993295,0.00012,2]
[356586001,1742735437192,-500.0,0.00012,2]
[356586002,1742735437201,-299.993295,0.00012,2]
[356586003,1742735437211,-299.993295,0.00012,2]
[356586004,1742735437220,-500.0,0.00012,2]
[356586005,1742735437229,-500.0,0.00012,2]
[356586006,1742735437239,-500.0,0.00012,2]
[356586007,1742735437255,-299.993295,0.00012,2]
[356586008,1742735437267,-299.993295,0.00012,2]
[356586009,1742735437277,-500.0,0.00012,2]
[356586010,1742735437286,-299.993295,0.00012,2]
[356586011,1742735437296,-299.993295,0.00012,2]
[356586012,1742735437306,-299.993295,0.00012,2]
[356586013,1742735437316,-500.0,0.00012,2]
[356586014,1742735437325,-299.993295,0.00012,2]
[356586015,1742735437335,-500.0,0.00012,2]
[356586016,1742735437344,-151.0,0.00012,2]
[356586017,1742735437354,-151.0,0.00012,2]
[356586018,1742735437364,-2984.674101,0.00012,2]
[356586019,1742735437373,-151.0,0.00012,2]
[356586020,1742735437382,-2984.674101,0.00012,2]
[356586021,1742735437392,-151.0,0.00012,2]
[356586022,1742735437402,-2984.674101,0.00012,2]
[356586023,1742735437411,-151.0,0.00012,2]
[356586024,1742735437421,-2984.674101,0.00012,2]
[356586025,1742735437430,-214.706994,0.00012,2]
[356586026,1742735437439,-2984.674101,0.00012,2]
[356586027,1742735437449,-2984.674101,0.00012,2]
[356586028,1742735437458,-2984.674101,0.00012,2]
[356586029,1742735437468,-2984.674101,0.00012,2]
[356586030,1742735437477,-2984.674101,0.00012,2]
[356586031,1742735437488,-2984.674101,0.00012,2]
[356586032,1742735437498,-2984.674101,0.00012,2]
[356586033,1742735437507,-2984.674101,0.00012,2]
[356586034,1742735437516,-500.0,0.00012,2]
[356586035,1742735437525,-500.0,0.00012,2]
[356586036,1742735437535,-151.0,0.00012,2]
[356586037,1742735437544,-151.0,0.00012,2]
[356586038,1742735437553,-156.037406,0.00012,2]
[356586039,1742735437562,-151.0,0.00012,2]
[356586040,1742735437571,-151.0,0.00012,2]
[356586041,1742735437581,-151.0,0.00012,2]
[356586042,1742735437590,-151.0,0.00012,2]
[356586043,1742735437600,-151.0,0.00012,2]
[356586044,1742735437609,-151.0,0.00012,2]
[356586045,1742735437619,-500.0,0.00012,2]
[356586046,1742735437628,-500.0,0.00012,2]
[356586047,1742735437638,-500.0,0.00012,2]
[356586048,1742735437765,-500.0,0.00012,2]
[356586049,1742735437786,-500.0,0.00012,2]
[356586050,1742735437796,-500.0,0.00012,2]
[356586051,1742735437805,-500.0,0.00012,2]
[356586052,1742735437814,-500.0,0.00012,2]
[356586053,1742735437824,-528.0,0.00012,2]
[356586054,1742735437833,-151.0,0.00012007,2]
[356586055,1742735437843,-151.0,0.00012007,2]
[356586056,1742735437852,-151.0,0.00012007,2]
[356586057,1742735437863,-278.934351,0.00012007,2]
[356586058,1742735437872,-278.934351,0.00012007,2]
[356586059,1742735437882,-180.53972,0.00012007,2]
[356586060,1742735437891,-180.53972,0.00012007,2]
[356586061,1742735437901,-151.0,0.00012007,2]
[356586062,1742735437910,-151.0,0.00012007,2]
[356586063,1742735437920,-151.0,0.00012023,2]
[356586064,1742735437930,-151.0,0.00012023,2]
[356586065,1742735437939,-151.0,0.00012023,2]
[356586066,1742735437949,-281.289019,0.00012023,2]
[356586067,1742735437958,-195.070366,0.00012023,2]
[356586068,1742735437967,-191.23264,0.00012023,2]
[356586069,1742735437979,-191.23264,0.00012023,2]
[356586070,1742735437989,-157.601624,0.00012023,2]
[356586071,1742735437998,-157.601624,0.00012023,2]
[356586072,1742735438007,-151.0,0.00012023,2]
[356586073,1742735438017,-151.0,0.00012023,2]
[356586074,1742735438029,-151.0,0.00012023,2]
[356586075,1742735438038,-151.0,0.00012023,2]
[356586076,1742735438047,-151.0,0.00012023,2]
[356586077,1742735438058,-299.452278,0.00012023,2]
[356586078,1742735438067,-151.0,0.00012023,2]
[356586079,1742735438077,-151.0,0.00012023,2]
[356586080,1742735438086,-299.452278,0.00012023,2]
[356586081,1742735438095,-151.0,0.00012023,2]
[356586082,1742735438105,-151.0,0.00012023,2]
[356586083,1742735438115,-151.0,0.00012023,2]
[356586084,1742735438124,-151.0,0.00012023,2]
[356586085,1742735438134,-299.993295,0.00012023,2]
[356586086,1742735438143,-299.993295,0.00012023,2]
[356586087,1742735438152,-2984.674101,0.00012023,2]
[356586088,1742735438162,-2984.674101,0.00012023,2]
[356586089,1742735438172,-151.0,0.00012023,2]
[356586090,1742735438182,-151.78,0.00012031,2]
[356586091,1742735438192,-164.68,0.00012073,2]
[356586092,1742735438201,-151.78,0.00012075,2]
[356586093,1742735438210,-150.0,0.000121,2]
[356586095,1742735438220,-150.0,0.000121,2]
[356586096,1742735438230,-151.78,0.00012118,2]
[356586097,1742735438239,-212.1,0.00012143,2]
[356586098,1742735438248,-151.78,0.00012162,2]
[356586099,1742735438259,-151.78,0.00012205,2]
[356586100,1742735438268,-1589.16,0.00012206,2]
[356586101,1742735438277,-151.78,0.00012249,2]
[356586102,1742735438287,-394.55,0.00012254,2]
[356586103,1742735438296,-153.17099,0.00012267,2]
[356586104,1742735438306,-151.0,0.00012267,2]
[356586105,1742735438315,-151.0,0.00012267,2]
[356586106,1742735438325,-151.0,0.00012267,2]
[356586107,1742735438335,-191.23264,0.00012267,2]
[356586108,1742735438344,-191.23264,0.00012267,2]
[356586109,1742735438353,-157.601624,0.00012267,2]
[356586110,1742735438363,-157.601624,0.00012267,2]
[356586111,1742735438372,-157.601624,0.00012267,2]
[356586112,1742735438382,-157.601624,0.00012267,2]
[356586113,1742735438391,-151.0,0.00012267,2]
[356586114,1742735438401,-152.950383,0.00012267,2]
[356586115,1742735438410,-151.0,0.00012267,2]
[356586116,1742735438420,-151.0,0.00012267,2]
[356586117,1742735438429,-151.0,0.00012267,2]
[356586118,1742735438439,-151.0,0.00012267,2]
[356586119,1742735438448,-151.0,0.00012267,2]
[356586120,1742735438458,-154.997127,0.00012267,2]
[356586121,1742735438467,-151.0,0.00012267,2]
[356586122,1742735438476,-299.452278,0.00012267,2]
[356586123,1742735438486,-284.51521,0.00012267,2]
[356586124,1742735438495,-246.8628,0.00012267,2]
[356586125,1742735438504,-299.452278,0.00012267,2]
[356586126,1742735438514,-151.0,0.00012267,2]
[356586127,1742735438523,-151.0,0.00012267,2]
[356586128,1742735438533,-151.0,0.00012267,2]
[356586129,1742735438542,-151.0,0.00012267,2]
[356586130,1742735438551,-278.934351,0.00012267,2]
[356586131,1742735438560,-278.934351,0.00012267,2]
[356586132,1742735438570,-180.53972,0.00012267,2]
[356586133,1742735438579,-151.0,0.00012267,2]
[356586134,1742735438588,-180.53972,0.00012267,2]
[356586135,1742735438598,-251.720367,0.00012267,2]
[356586136,1742735438607,-151.0,0.00012267,2]
[356586137,1742735438617,-151.0,0.00012267,2]
[356586138,1742735438626,-151.0,0.00012267,2]
[356586139,1742735438636,-299.993295,0.00012267,2]
[356586140,1742735438645,-299.993295,0.00012267,2]
[356586141,1742735438654,-2984.674101,0.00012267,2]
[356586142,1742735438664,-2984.674101,0.00012267,2]
[356586143,1742735438673,-151.0,0.00012267,2]
[356586144,1742735438683,-27893.63788518,0.00012267,2]
[356586145,1742735438693,-151.78,0.00012293,2]
[356586146,1742735438703,-151.78,0.00012336,2]
[356586147,1742735438712,-23900.0,0.00012343,2]
[356586148,1742735438722,-153.514874,0.00012343,2]
[356586149,1742735438731,-151.566021,0.00012343,2]
[356586150,1742735438740,-151.690125,0.00012343,2]
[356586151,1742735438749,-151.0,0.00012343,2]
[356586152,1742735438758,-151.0,0.00012343,2]
[356586153,1742735438768,-151.0,0.00012343,2]
[356586154,1742735438778,-191.23264,0.00012343,2]
[356586155,1742735438788,-191.23264,0.00012343,2]
[356586156,1742735438805,-157.601624,0.00012343,2]
[356586157,1742735438819,-157.601624,0.00012343,2]
[356586158,1742735438831,-265.991417,0.00012343,2]
[356586159,1742735438842,-151.0,0.00012343,2]
[356586160,1742735438856,-151.0,0.00012343,2]
[356586161,1742735438869,-299.452278,0.00012343,2]
[356586162,1742735438883,-299.452278,0.00012343,2]
[356586163,1742735438896,-176.245934,0.00012343,2]
[356586164,1742735438911,-151.0,0.00012343,2]
[356586165,1742735438925,-278.934351,0.00012343,2]
[356586166,1742735438937,-278.934351,0.00012343,2]
[356586167,1742735438948,-180.53972,0.00012343,2]
[356586168,1742735438960,-151.0,0.00012343,2]
[356586169,1742735438974,-180.53972,0.00012343,2]
[356586170,1742735438989,-151.0,0.00012343,2]
[356586171,1742735439002,-151.0,0.00012343,2]
[356586172,1742735439016,-154.934801,0.00012343,2]
[356586173,1742735439030,-299.993295,0.00012343,2]
[356586174,1742735439043,-299.993295,0.00012343,2]
[356586175,1742735439056,-2984.674101,0.00012343,2]
[356586176,1742735439071,-2984.674101,0.00012343,2]
[356586177,1742735439084,-151.0,0.00012343,2]
[356586178,1742735439097,-151.0,0.00012361,2]
[356586179,1742735439110,-151.0,0.00012361,2]
[356586180,1742735439122,-250.01,0.00012379,2]
[356586181,1742735439135,-151.78,0.0001238,2]
[356586182,1742735439148,-151.0,0.00012423,2]
[356586183,1742735439162,-248.348343,0.00012423,2]
[356586184,1742735439175,-151.0,0.00012423,2]
[356586185,1742735439188,-191.23264,0.00012423,2]
[356586186,1742735439199,-191.23264,0.00012423,2]
[356586187,1742735439211,-157.601624,0.00012423,2]
[356586188,1742735439222,-157.601624,0.00012423,2]
[356586189,1742735439236,-151.0,0.00012423,2]
[356586190,1742735439249,-151.0,0.00012423,2]
[356586191,1742735439259,-299.452278,0.00012423,2]
[356586192,1742735439269,-299.452278,0.00012423,2]
[356586193,1742735439280,-151.0,0.00012423,2]
[356586194,1742735439292,-151.0,0.00012423,2]
[356586195,1742735439306,-151.0,0.00012423,2]
[356586196,1742735439316,-278.934351,0.00012423,2]
[356586197,1742735439326,-278.934351,0.00012423,2]
[356586198,1742735439336,-180.53972,0.00012423,2]
[356586199,1742735439348,-180.53972,0.00012423,2]
[356586200,1742735439359,-151.0,0.00012423,2]
[356586201,1742735439371,-189.920121,0.00012423,2]
[356586202,1742735439382,-151.78,0.00012423,2]
[356586203,1742735439394,-359.9561497,0.00012453,2]
[356586204,1742735439405,-151.78,0.00012467,2]
[356586205,1742735439416,-420.0,0.00012469,2]
[356586206,1742735439426,-1000.0,0.00012499,2]
[356586207,1742735439437,-583.5,0.00012509,2]
[356586208,1742735439448,-504.0,0.00012603,2]
[356586209,1742735439459,-164.68,0.00012703,2]
[356586210,1742735439470,-212.1,0.0001275,2]
[356586211,1742735439481,-999.99,0.00012893,2]
[356586212,1742735439493,-159.55,0.00013,2]
[356586213,1742735439504,-300.0,0.00013,2]
[356586214,1742735439515,-152.735117,0.00013192,2]
[356586215,1742735439526,-151.0,0.00013192,2]
[356586216,1742735439537,-164.68,0.00013333,2]
[356586217,1742735439548,-212.1,0.00013358,2]
[356586218,1742735439559,-500.0,0.0001345,2]
[356586219,1742735439570,-500.0,0.0001345,2]
[356586220,1742735439581,-1247.0,0.0001345,2]
[356586221,1742735439592,-500.0,0.0001345,2]
[356586222,1742735439605,-150.0,0.0001345,2]
[356586223,1742735439617,-500.0,0.0001345,2]
[356586224,1742735439629,-150.0,0.0001345,2]
[356586225,1742735439640,-500.0,0.0001345,2]
[356586226,1742735439651,-150.0,0.0001345,2]
[356586227,1742735439663,-500.0,0.0001345,2]
[356586228,1742735439675,-150.0,0.0001345,2]
[356586229,1742735439686,-556.59837001,0.00013477,2]
[356586231,1742735439698,-807.68860286,0.00013477,2]
[356586232,1742735439709,-1247.0,0.00013477,2]
[356586233,1742735439721,-500.0,0.00013477,2]
[356586234,1742735439732,-500.0,0.00013477,2]
[356586235,1742735439744,-500.0,0.00013477,2]
[356586236,1742735439755,-150.0,0.00013477,2]
[356586237,1742735439767,-500.0,0.00013477,2]
[356586238,1742735439779,-150.0,0.00013477,2]
[356586239,1742735439790,-1247.0,0.00013505,2]
[356586240,1742735439802,-500.0,0.00013505,2]
[356586241,1742735439813,-500.0,0.00013505,2]
[356586242,1742735439825,-500.0,0.00013505,2]
[356586243,1742735439837,-150.0,0.00013505,2]
[356586244,1742735439849,-656.66374881,0.00013505,2]
[356586245,1742735439861,-231.82043396,0.00013505,2]
[356586246,1742735439873,-150.27,0.00013507,2]
[356586247,1742735439886,-178.121649,0.00013507,2]
[356586248,1742735439898,-191.23264,0.00013507,2]
[356586249,1742735439910,-191.23264,0.00013507,2]
[356586250,1742735439922,-151.0,0.00013532,2]
[356586251,1742735439934,-157.601624,0.00013532,2]
[356586252,1742735439946,-157.601624,0.00013532,2]
[356586253,1742735439958,-151.0,0.00013532,2]
[356586254,1742735439969,-151.0,0.00013532,2]
[356586255,1742735439983,-299.452278,0.00013532,2]
[356586256,1742735439995,-299.452277,0.00013532,2]
[356586257,1742735440006,-151.0,0.00013532,2]
[356586258,1742735440017,-278.934351,0.00013532,2]
[356586259,1742735440028,-278.934352,0.00013532,2]
[356586260,1742735440040,-180.53972,0.00013532,2]
[356586261,1742735440053,-243.295285,0.00013532,2]
[356586262,1742735440066,-180.539717,0.00013532,2]
[356586263,1742735440223,-151.0,0.00013532,2]
[356586264,1742735440243,-299.993295,0.00013532,2]
[356586265,1742735440253,-299.993293,0.00013532,2]
[356586266,1742735440263,-2984.674101,0.00013532,2]
[356586267,1742735440272,-2984.674097,0.00013532,2]
[356586268,1742735440282,-218.317619,0.00013532,2]
[356586269,1742735440292,-1247.0,0.00013532,2]
[356586270,1742735440301,-500.0,0.00013532,2]
[356586271,1742735440311,-500.0,0.00013532,2]
[356586272,1742735440321,-500.0,0.00013532,2]
[356586273,1742735440330,-152.29479966,0.00013532,2]
[356586274,1742735440340,-1247.0,0.0001356,2]
[356586275,1742735440349,-587.65043828,0.0001356,2]
[356586276,1742735440359,-638.26633823,0.0001356,2]
[356586277,1742735440369,-500.0,0.0001356,2]
[356586278,1742735440379,-150.27,0.00013567,2]
[356586279,1742735440388,-1692.13,0.00013576,2]
[356586280,1742735440398,-1247.0,0.00013587,2]
[356586281,1742735440407,-500.0,0.00013587,2]
[356586283,1742735440416,-1247.0,0.00013614,2]
[356586285,1742735440425,-500.0,0.00013614,2]
[356586287,1742735440435,-150.27,0.00013627,2]
[356586289,1742735440444,-283.20128,0.00013637,2]
[356586291,1742735440453,-154.869072,0.00013637,2]
[356586293,1742735440462,-1247.0,0.00013642,2]
[356586295,1742735440471,-500.0,0.00013642,2]
[356586297,1742735440481,-1247.0,0.00013669,2]
[356586299,1742735440490,-500.0,0.00013669,2]
[356586301,1742735440499,-150.27,0.00013687,2]
[356586303,1742735440509,-1247.0,0.00013697,2]
[356586305,1742735440518,-500.0,0.00013697,2]
[356586307,1742735440527,-587.0,0.00013697,2]
[356586309,1742735440536,-243.82,0.00013699,2]
[356586311,1742735440545,-150.99,0.00013699,2]
[356586312,1742735440554,-4205.57,0.00013699,2]
[356586314,1742735440563,-1226.76,0.00013699,2]
[356586316,1742735440572,-3707.84,0.00013699,2]
[356586319,1742735440582,-634.05,0.00013699,2]
[356586321,1742735440592,-9182.73,0.00013699,2]
[356586323,1742735440601,-4366.47,0.00013699,2]
[356586325,1742735440609,-299.99,0.00013699,2]
[356586326,1742735440619,-200.0,0.00013699,2]
[356586329,1742735440628,-500.0,0.00013699,13]
[356586331,1742735440637,-500.0,0.00013699,13]
[356586332,1742735440646,-500.0,0.00013699,13]
[356586334,1742735440656,-500.0,0.00013699,13]
[356586335,1742735440665,-500.0,0.00013699,13]
[356586336,1742735440673,-500.0,0.00013699,13]
[356586337,1742735440683,-500.0,0.00013699,13]
[356586338,1742735440693,-402.0,0.00013699,13]
[356586339,1742735440702,-191.23264,0.00013699,2]
[356586340,1742735440711,-191.23264,0.00013699,2]
[356586341,1742735440722,-157.601624,0.00013699,2]
[356586342,1742735440732,-157.60162152,0.00013699,2]
[356586343,1742735440741,-151.0,0.00013699,2]
[356586344,1742735440750,-500.0,0.00013699,2]
[356586345,1742735440759,-500.0,0.00013699,2]
[356586346,1742735440769,-500.0,0.00013699,2]
[356586347,1742735440779,-500.0,0.00013699,2]
[356586348,1742735440788,-500.0,0.00013699,2]
[356586349,1742735440799,-500.0,0.00013699,2]
[356586350,1742735440811,-500.0,0.00013699,2]
[356586351,1742735440820,-500.0,0.00013699,2]
[356586352,1742735440829,-510.19269568,0.00013699,2]
[356586353,1742735440839,-500.0,0.00013699,2]
[356586354,1742735440849,-500.0,0.00013699,2]
[356586355,1742735440858,-151.0,0.000137,2]
[356586356,1742735440867,-151.0,0.000137,2]
[356586357,1742735440876,-511.0,0.000137,2]
[356586358,1742735440886,-191.23264,0.000137,2]
[356586359,1742735440895,-191.23264,0.000137,2]
[356586360,1742735440904,-10602.89,0.000137,2]
[356586361,1742735440914,-10602.89,0.000137,2]
[356586362,1742735440924,-1247.0,0.00013724,2]
[356586363,1742735440933,-903.56077192,0.00013724,2]
[356586364,1742735440942,-160.9,0.00013746,2]
[356586365,1742735440951,-150.27,0.00013747,2]
[356586366,1742735440960,-1247.0,0.00013751,2]
[356586367,1742735440969,-1247.0,0.00013779,2]
[356586368,1742735440983,-394.55,0.00013786,2]
[356586369,1742735440992,-1247.0,0.00013806,2]
[356586370,1742735441002,-150.27,0.00013807,2]
[356586371,1742735441013,-1247.0,0.00013834,2]
[356586372,1742735441025,-1247.0,0.00013861,2]
[356586373,1742735441035,-150.27,0.00013867,2]
[356586374,1742735441044,-250.99277901,0.00013882,2]
[356586375,1742735441055,-1000.0,0.00013888,2]
[356586376,1742735441064,-1247.0,0.00013888,2]